Workbook

Sheet Data
A1: Problem 1, Exam TPG4230 - Prof Milan stanko
A2: uptime | B2: [d] | C2: 355 | E2: tplateau field [y] | F2: 4
A3: qplateau field | B3: [Sm3/d] | C3: 12000
A4: qplateau Alta | B4: [Sm3/d] | C4: 9100
A5: qplateau Gohta | B5: [Sm3/d] | C5: =C3-C4 -> 2900 | N5: NPV CALCULATIONS
N6: Discount rate | O6: [1/year] | P6: 0.08
B7: N [1E06 Sm3] | C7: qppo [Sm3/d] | D7: Nwells | N7: Oil price | O7: [USD/Sm3] | P7: 180
A8: Alta | B8: 80 | C8: 4100 | D8: 6 | N8: COST | O8: [1E06 USD] | P8: =cost(C3,D8+D9) -> 2590
A9: Gohta | B9: 25 | C9: 2700 | D9: 3 | N9: NPV | O9: [1E06 USD] | P9: =P10-P8 -> 2586.155076
N10: NPVrev | O10: [1E06 USD] | P10: =SUM(P14:P30) -> 5176.155076
D11: ALTA | H11: GOHTA | L11: FIELD
C12: time | D12: DNp | E12: Np | F12: qpp | G12: q | H12: DNp | I12: Np | J12: qpp | K12: q | L12: qfield | M12: DNp | N12: Np | O12: Rf | P12: Discounted yearly revenue
C13: [y] | D13: [1E06 Sm3] | E13: [1E06 Sm3] | F13: [Sm3/d] | G13: [Sm3/d] | H13: [1E06 Sm3] | I13: [1E06 Sm3] | J13: [Sm3/d] | K13: [Sm3/d] | L13: [Sm3/d] | M13: [1E06 Sm3] | N13: [1E06 Sm3] | O13: [-] | P13: [1E06 USD]
C14: 0 | D14: 0 | E14: 0 | F14: =qpp(E14,$B$8,$C$8,$D$8) -> 24600 | G14: =IF(F14<$C$4,F14,$C$4) -> 9100 | H14: 0 | I14: 0 | J14: =qpp(I14,$B$9,$C$9,$D$9) -> 8100 | K14: =IF(J14<$C$5,J14,$C$5) -> 2900 | L14: =G14+K14 -> 12000 | M14: =H14+D14 -> 0 | N14: =I14+E14 -> 0 | O14: =N14/($B$8+$B$9) -> 0 | P14: =M14*$P$7/((1+$P$6)^C14) -> 0
C15: 1 | D15: =G14*(C15-C14)*$C$2/1000000 -> 3.2305 | E15: =E14+D15 -> 3.2305 | F15: =qpp(E15,$B$8,$C$8,$D$8) -> 19965.69921 | G15: =IF(F15<$C$4,F15,$C$4) -> 9100 | H15: =K14*(C15-C14)*$C$2/1000000 -> 1.0295 | I15: =H15+I14 -> 1.0295 | J15: =qpp(I15,$B$9,$C$9,$D$9) -> 6546.985022 | K15: =IF(J15<$C$5,J15,$C$5) -> 2900 | L15: =G15+K15 -> 12000 | M15: =H15+D15 -> 4.26 | N15: =I15+E15 -> 4.26 | O15: =N15/($B$8+$B$9) -> 0.04057142857 | P15: =M15*$P$7/((1+$P$6)^C15) -> 710
C16: 2 | D16: =G15*(C16-C15)*$C$2/1000000 -> 3.2305 | E16: =E15+D16 -> 6.461 | F16: =qpp(E16,$B$8,$C$8,$D$8) -> 16204.43679 | G16: =IF(F16<$C$4,F16,$C$4) -> 9100 | H16: =K15*(C16-C15)*$C$2/1000000 -> 1.0295 | I16: =H16+I15 -> 2.059 | J16: =qpp(I16,$B$9,$C$9,$D$9) -> 5291.729985 | K16: =IF(J16<$C$5,J16,$C$5) -> 2900 | L16: 12000 | M16: 4.26 | N16: 8.52 | O16: 0.08114285714 | P16: 657.4074074
C17: 3 | D17: 3.2305 | E17: 9.6915 | F17: =qpp(E17,$B$8,$C$8,$D$8) -> 13151.74434 | G17: 9100 | H17: 1.0295 | I17: 3.0885 | J17: =qpp(I17,$B$9,$C$9,$D$9) -> 4277.145303 | K17: 2900 | L17: 12000 | M17: 4.26 | N17: 12.78 | O17: 0.1217142857 | P17: 608.7105624
C18: 4 | D18: 3.2305 | E18: 12.922 | F18: =qpp(E18,$B$8,$C$8,$D$8) -> 10674.13706 | G18: 9100 | H18: 1.0295 | I18: 4.118 | J18: =qpp(I18,$B$9,$C$9,$D$9) -> 3457.087189 | K18: 2900 | L18: 12000 | M18: 4.26 | N18: 17.04 | O18: 0.1622857143 | P18: 563.6208911
C19: 5 | D19: 3.2305 | E19: 16.1525 | F19: =qpp(E19,$B$8,$C$8,$D$8) -> 8663.27682 | G19: 8663.27682 | H19: 1.0295 | I19: 5.1475 | J19: =qpp(I19,$B$9,$C$9,$D$9) -> 2794.259018 | K19: 2794.259018 | L19: 11457.53584 | M19: 4.26 | N19: 21.3 | O19: 0.2028571429 | P19: 521.8711955
C20: 6 | D20: 3.075463271 | E20: 19.22796327 | F20: =qpp(E20,$B$8,$C$8,$D$8) -> 7102.022951 | G20: 7102.022951 | H20: 0.9919619514 | I20: 6.139461951 | J20: =qpp(I20,$B$9,$C$9,$D$9) -> 2276.11242 | K20: 2276.11242 | L20: 9378.13537 | M20: 4.067425223 | N20: 25.36742522 | O20: 0.2415945259 | P20: 461.3702103
C21: 7 | D21: 2.521218147 | E21: 21.74918142 | F21: =qpp(E21,$B$8,$C$8,$D$8) -> 6034.406209 | G21: 6034.406209 | H21: 0.808019909 | I21: 6.94748186 | J21: =qpp(I21,$B$9,$C$9,$D$9) -> 1925.917952 | K21: 1925.917952 | L21: 7960.324161 | M21: 3.329238056 | N21: 28.69666328 | O21: 0.273301555 | P21: 349.6641173
C22: 8 | D22: 2.142214204 | E22: 23.89139562 | F22: =qpp(E22,$B$8,$C$8,$D$8) -> 5254.388558 | G22: 5254.388558 | H22: 0.6837008729 | I22: 7.631182733 | J22: =qpp(I22,$B$9,$C$9,$D$9) -> 1672.033783 | K22: 1672.033783 | L22: 6926.422341 | M22: 2.825915077 | N22: 31.52257836 | O22: 0.300215032 | P22: 274.8157176
C23: 9 | D23: 1.865307938 | E23: 25.75670356 | F23: =qpp(E23,$B$8,$C$8,$D$8) -> 4657.791618 | G23: 4657.791618 | H23: 0.593571993 | I23: 8.224754726 | J23: =qpp(I23,$B$9,$C$9,$D$9) -> 1478.922489 | K23: 1478.922489 | L23: 6136.714107 | M23: 2.458879931 | N23: 33.98145829 | O23: 0.3236329361 | P23: 221.4093863
C24: 10 | D24: 1.653516024 | E24: 27.41021959 | F24: =qpp(E24,$B$8,$C$8,$D$8) -> 4185.824217 | G24: 4185.824217 | H24: 0.5250174835 | I24: 8.74977221 | J24: =qpp(I24,$B$9,$C$9,$D$9) -> 1326.788233 | K24: 1326.788233 | L24: 5512.61245 | M24: 2.178533508 | N24: 36.1599918 | O24: 0.3443808742 | P24: 181.6348562
C25: 11 | D25: 1.485967597 | E25: 28.89618718 | F25: =qpp(E25,$B$8,$C$8,$D$8) -> 3802.624737 | G25: 3802.624737 | H25: 0.4710098228 | I25: 9.220782033 | J25: =qpp(I25,$B$9,$C$9,$D$9) -> 1203.669935 | K25: 1203.669935 | L25: 5006.294672 | M25: 1.95697742 | N25: 38.11696922 | O25: 0.3630187544 | P25: 151.0765329
C26: 12 | D26: 1.349931782 | E26: 30.24611896 | F26: =qpp(E26,$B$8,$C$8,$D$8) -> 3485.003615 | G26: 3485.003615 | H26: 0.4273028268 | I26: 9.648084859 | J26: =qpp(I26,$B$9,$C$9,$D$9) -> 1101.889062 | K26: 1101.889062 | L26: 4586.892677 | M26: 1.777234608 | N26: 39.89420382 | O26: 0.3799447983 | P26: 127.0375768
C27: 13 | D27: 1.237176283 | E27: 31.48329525 | F27: =qpp(E27,$B$8,$C$8,$D$8) -> 3217.266316 | G27: 3217.266316 | H27: 0.3911706171 | I27: 10.03925548 | J27: =qpp(I27,$B$9,$C$9,$D$9) -> 1016.278676 | K27: 1016.278676 | L27: 4233.544992 | M27: 1.6283469 | N27: 41.52255072 | O27: 0.395452864 | P27: 107.7731597
C28: 14 | D28: 1.142129542 | E28: 32.62542479 | F28: =qpp(E28,$B$8,$C$8,$D$8) -> 2988.394192 | G28: 2988.394192 | H28: 0.3607789301 | I28: 10.40003441 | J28: =qpp(I28,$B$9,$C$9,$D$9) -> 943.2281809 | K28: 943.2281809 | L28: 3931.622373 | M28: 1.502908472 | N28: 43.0254592 | O28: 0.4097662781 | P28: 92.10272104
C29: 15 | D29: 1.060879938 | E29: 33.68630473 | F29: =qpp(E29,$B$8,$C$8,$D$8) -> 2790.414298 | G29: 2790.414298 | H29: 0.3348460042 | I29: 10.73488041 | J29: =qpp(I29,$B$9,$C$9,$D$9) -> 880.1351427 | K29: 880.1351427 | L29: 3670.549441 | M29: 1.395725943 | N29: 44.42118514 | O29: 0.4230589061 | P29: 79.19838464
C30: 16 | D30: 0.9905970758 | E30: 34.6769018 | F30: =qpp(E30,$B$8,$C$8,$D$8) -> 2617.409597 | G30: 2617.409597 | H30: 0.3124479756 | I30: 11.04732839 | J30: =qpp(I30,$B$9,$C$9,$D$9) -> 825.0745315 | K30: 825.0745315 | L30: 3442.484128 | M30: 1.303045051 | N30: 45.72423019 | O30: 0.435468859 | P30: 68.46235728

Sheet Field layout
